[Event "1000GM NY Winter IM-C 2024"]
[Site "New York"]
[Date "2024.01.12"]
[Round "1.1"]
[White "Tanenbaum, Zachary"]
[Black "Hajnal, Zoltan"]
[Result "1/2-1/2"]
[ECO "C55"]
[WhiteElo "2272"]
[BlackElo "2383"]
[Annotator "RC"]
[PlyCount "97"]
[EventDate "2024.01.10"]
[EventType "swiss"]
[EventCountry "USA"]
[SourceTitle "playchess.com"]
[Source "ChessBase"]
[SourceQuality "1"]
[TimeControl "5400+30"]

1. e4 {[%emt 0:19:58]} e5 {[%emt 0:00:21]} 2. Nf3 {[%emt 0:00:05]} Nc6 {[%emt 0:00:05]} 3. Bc4 {[%emt 0:00:06]} Nf6 {[%emt 0:00:26]} 4. d3 {[%emt 0:00:04]} Be7 {[%emt 0:00:10]} 5. O-O {[%emt 0:00:06]} O-O {[%emt 0:00:04]} 6. Re1 {[%emt 0:00:04]} d6 {[%emt 0:00:09]} 7. a4 {[%emt 0:00:04]} Kh8 {[%emt 0:00:29]} 8. a5 {[%emt 0:00:28]} a6 {[%emt 0:00:14]} 9. h3 {[%emt 0:00:07]} Ng8 {[%emt 0:00:19]} 10. Nc3 {[%emt 0:00:10]} f5 {[%emt 0:00:15]} 11. Nd5 {[%emt 0:00:07]} fxe4 {[%emt 0:01:17]} 12. dxe4 {[%emt 0:00:04]} Nf6 {[%emt 0:01:09]} 13. Qd2 {[%emt 0:14:53]} Nxd5 {[%emt 0:07:24]} 14. exd5 {[%emt 0:01:19]} Nb8 {[%emt 0:00:07]} 15. Ng5 {[%emt 0:13:26]} Bxg5 {[%emt 0:10:39]} 16. Qxg5 {[%emt 0:00:03]} Qxg5 {[%emt 0:00:06]} 17. Bxg5 {[%emt 0:00:18]} Bf5 {[%emt 0:00:05]} 18. Bf1 {[%emt 0:18:31]} Nd7 {[%emt 0:02:12]} 19. Ra3 {[%emt 0:05:30]} Rfc8 {[%emt 0:06:21]} 20. c4 {[%emt 0:02:31]} h6 {[%emt 0:09:18]} 21. Be3 {[%emt 0:00:38]} Nf6 {[%emt 0:00:09]} 22. Rb3 {[%emt 0:04:31]} c6 {[%emt 0:01:51]} 23. dxc6 {[%emt 0:05:03]} bxc6 {[%emt 0:00:23]} 24. Bxh6 {[%emt 0:00:37]} gxh6 {[%emt 0:06:58]} 25. Rf3 {[%emt 0:00:04]} Kg7 {[%emt 0:00:05]} 26. Rxf5 {[%emt 0:00:08]} c5 {[%emt 0:03:58]} 27. g4 {[%emt 0:09:17]} Rab8 {[%emt 0:02:15]} 28. f4 {[%emt 0:00:34]} e4 {[%emt 0:02:41]} 29. g5 {[%emt 0:00:21]} hxg5 {[%emt 0:00:17]} 30. fxg5 {[%emt 0:00:02]} Nd7 {[%emt 0:00:52]} 31. Rd5 {[%emt 0:06:03]} Rxb2 {[%emt 0:03:04]} 32. Rxd6 {[%emt 0:00:15]} Ne5 {[%emt 0:00:06]} 33. Bg2 {[%emt 0:00:07]} Nxc4 {[%emt 0:08:52]} 34. Rd7+ {[%emt 0:00:10]} Kg6 {[%emt 0:00:04]} 35. Rxe4 {[%emt 0:00:11]} Rc2 {[%emt 0:11:49]} 36. Rd5 {[%emt 0:01:59]} Rb8 {[%emt 0:18:40]} 37. Re1 {[%emt 0:00:31]} Nd2 {[%emt 0:01:34]} 38. h4 {[%emt 0:00:31]} c4 {[%emt 0:00:39]} 39. Kf2 {[%emt 0:00:30]} Kh5 {[%emt 0:01:33]} 40. Kg3 {[%emt 0:00:30]} Rf8 {[%emt 0:01:43]} 41. Rde5 {[%emt 0:00:24]} Rc3+ {[%emt 0:01:20]} 42. R1e3 {[%emt 0:00:05]} Rxe3+ {[%emt 0:00:47]} 43. Rxe3 {[%emt 0:00:01]} Nf1+ {[%emt 0:00:11]} 44. Bxf1 {[%emt 0:00:03]} Rxf1 {[%emt 0:00:05]} 45. Re6 {[%emt 0:01:26]} Rg1+ {[%emt 0:00:05]} 46. Kh3 {[%emt 0:00:38]} Rh1+ {[%emt 0:00:05]} 47. Kg3 {[%emt 0:00:02]} Rg1+ {[%emt 0:00:04]} 48. Kf4 {[%emt 0:00:05]} Rf1+ {[%emt 0:00:09]} 49. Ke4 {[%emt 0:02:20]} 1/2-1/2

[Event "1000GM NY Winter IM-C 2024"]
[Site "New York"]
[Date "2024.01.12"]
[Round "1.2"]
[White "Ho, Carter"]
[Black "Yudasin, Leonid"]
[Result "1/2-1/2"]
[ECO "B47"]
[WhiteElo "2180"]
[BlackElo "2353"]
[Annotator "RC"]
[PlyCount "72"]
[EventDate "2024.01.10"]
[EventType "swiss"]
[EventCountry "USA"]
[SourceTitle "playchess.com"]
[Source "ChessBase"]
[SourceQuality "1"]
[TimeControl "5400+30"]

1. e4 {[%emt 0:00:24]} c5 {[%emt 0:00:05]} 2. Nf3 {[%emt 0:00:07]} e6 {[%emt 0:01:10]} 3. d4 {[%emt 0:00:20]} cxd4 {[%emt 0:00:04]} 4. Nxd4 {[%emt 0:00:04]} a6 {[%emt 0:00:08]} 5. Nc3 {[%emt 0:00:10]} Qc7 {[%emt 0:00:50]} 6. g3 {[%emt 0:02:29]} Nc6 {[%emt 0:06:09]} 7. Bg2 {[%emt 0:00:21]} Nf6 {[%emt 0:01:55]} 8. O-O {[%emt 0:01:12]} Nxd4 {[%emt 0:02:58]} 9. Qxd4 {[%emt 0:00:06]} Bc5 {[%emt 0:00:06]} 10. Qd3 {[%emt 0:01:48]} d6 {[%emt 0:02:33]} 11. Bf4 {[%emt 0:02:46]} h6 {[%emt 0:08:12]} 12. Rad1 {[%emt 0:08:34]} e5 {[%emt 0:01:03]} 13. Be3 {[%emt 0:01:28]} Bg4 {[%emt 0:09:25]} 14. Bxc5 {[%emt 0:03:38]} dxc5 {[%emt 0:07:15]} 15. f3 {[%emt 0:02:12]} Be6 {[%emt 0:06:07]} 16. f4 {[%emt 0:07:17]} Rd8 {[%emt 0:10:21]} 17. Qxd8+ {[%emt 0:02:31]} Qxd8 {[%emt 0:00:09]} 18. Rxd8+ {[%emt 0:00:08]} Kxd8 {[%emt 0:00:06]} 19. Na4 {[%emt 0:00:27]} Nd7 {[%emt 0:02:45]} 20. f5 {[%emt 0:19:25]} Bc4 {[%emt 0:01:05]} 21. Rd1 {[%emt 0:00:13]} Kc7 {[%emt 0:01:14]} 22. Rxd7+ {[%emt 0:02:45]} Kxd7 {[%emt 0:00:58]} 23. Nb6+ {[%emt 0:00:04]} Kc6 {[%emt 0:03:14]} 24. Nxc4 {[%emt 0:00:10]} f6 {[%emt 0:00:02]} 25. Ne3 {[%emt 0:00:53]} b5 {[%emt 0:00:04]} 26. Kf2 {[%emt 0:01:33]} c4 {[%emt 0:00:23]} 27. c3 {[%emt 0:07:26]} Kc5 {[%emt 0:00:55]} 28. Nd5 {[%emt 0:00:16]} a5 {[%emt 0:00:15]} 29. a3 {[%emt 0:00:52]} a4 {[%emt 0:01:18]} 30. Ke3 {[%emt 0:03:33]} Kd6 {[%emt 0:01:05]} 31. Bf3 {[%emt 0:00:20]} h5 {[%emt 0:00:16]} 32. Nb4 {[%emt 0:01:36]} h4 {[%emt 0:04:52]} 33. g4 {[%emt 0:00:19]} Ke7 {[%emt 0:05:29]} 34. Nc2 {[%emt 0:00:59]} Kf7 {[%emt 0:00:17]} 35. Nb4 {[%emt 0:00:51]} g5 {[%emt 0:00:42]} 36. Nc6 {[%emt 0:05:14]} Ra8 {[%emt 0:25:00]} 1/2-1/2

[Event "1000GM NY Winter IM-C 2024"]
[Site "New York"]
[Date "2024.01.12"]
[Round "1.3"]
[White "Rohde, Michael"]
[Black "Mou, Iris"]
[Result "0-1"]
[ECO "A09"]
[WhiteElo "2333"]
[BlackElo "2128"]
[Annotator "RC"]
[PlyCount "76"]
[EventDate "2024.01.10"]
[EventType "swiss"]
[EventCountry "USA"]
[SourceTitle "playchess.com"]
[Source "ChessBase"]
[SourceQuality "1"]
[TimeControl "5400+30"]

1. Nf3 {[%emt 0:03:20]} d5 {[%emt 0:00:14]} 2. c4 {[%emt 0:00:19]} d4 {[%emt 0:00:12]} 3. a3 {[%emt 0:01:27]} a5 {[%emt 0:00:25]} 4. e3 {[%emt 0:00:36]} c5 {[%emt 0:00:37]} 5. exd4 {[%emt 0:01:10]} cxd4 {[%emt 0:00:08]} 6. c5 {[%emt 0:04:11]} Nc6 {[%emt 0:05:53]} 7. Bb5 {[%emt 0:00:44]} Qd5 {[%emt 0:10:49]} 8. Qa4 {[%emt 0:10:26]} Bg4 {[%emt 0:16:46]} 9. d3 {[%emt 0:12:58]} Bxf3 {[%emt 0:07:49]} 10. gxf3 {[%emt 0:00:15]} Qxf3 {[%emt 0:02:58]} 11. Rg1 {[%emt 0:00:26]} e5 {[%emt 0:04:42]} 12. Nd2 {[%emt 0:03:40]} Qd5 {[%emt 0:01:45]} 13. b4 {[%emt 0:03:18]} Nf6 {[%emt 0:04:26]} 14. Bc4 {[%emt 0:03:36]} Qd7 {[%emt 0:03:45]} 15. b5 {[%emt 0:15:10]} Nd8 {[%emt 0:06:59]} 16. c6 {[%emt 0:01:17]} bxc6 {[%emt 0:03:16]} 17. bxc6 {[%emt 0:00:19]} Qc7 {[%emt 0:00:47]} 18. Rb1 {[%emt 0:00:48]} Ra7 {[%emt 0:02:54]} 19. Nf3 {[%emt 0:04:46]} h6 {[%emt 0:04:18]} 20. Nxe5 {[%emt 0:09:19]} Qxe5+ {[%emt 0:06:34]} 21. Kd1 {[%emt 0:06:27]} Qh5+ {[%emt 0:01:41]} 22. Kc2 {[%emt 0:00:50]} Rc7 {[%emt 0:02:04]} 23. Re1+ {[%emt 0:06:05]} Be7 {[%emt 0:00:45]} 24. Bf4 {[%emt 0:04:48]} Rxc6 {[%emt 0:01:44]} 25. Bd6 {[%emt 0:00:37]} Nd5 {[%emt 0:01:31]} 26. Bxe7 {[%emt 0:05:50]} Nxe7 {[%emt 0:00:32]} 27. Rb7 {[%emt 0:00:08]} O-O {[%emt 0:00:50]} 28. Rbxe7 {[%emt 0:00:02]} Qxh2 {[%emt 0:01:56]} 29. Qxa5 {[%emt 0:00:22]} Qxf2+ {[%emt 0:01:40]} 30. R1e2 {[%emt 0:00:02]} Qf3 {[%emt 0:01:14]} 31. Qb5 {[%emt 0:00:34]} Ne6 {[%emt 0:00:51]} 32. Rd2 {[%emt 0:00:45]} Nc7 {[%emt 0:01:38]} 33. Qe5 {[%emt 0:01:25]} Nd5 {[%emt 0:00:51]} 34. Re8 {[%emt 0:00:45]} Rxe8 {[%emt 0:03:01]} 35. Qxe8+ {[%emt 0:00:03]} Kh7 {[%emt 0:00:05]} 36. Kb3 {[%emt 0:01:05]} Rb6+ {[%emt 0:01:49]} 37. Ka4 {[%emt 0:00:30]} Nc3+ {[%emt 0:00:15]} 38. Ka5 {[%emt 0:00:01]} Qb7 {[%emt 0:00:08]} 0-1

[Event "1000GM NY Winter IM-C 2024"]
[Site "New York"]
[Date "2024.01.12"]
[Round "1.4"]
[White "Pressman, Leif"]
[Black "Pagan, Jonathan"]
[Result "1/2-1/2"]
[ECO "E04"]
[WhiteElo "2258"]
[BlackElo "2018"]
[Annotator "RC"]
[PlyCount "96"]
[EventDate "2024.01.10"]
[EventType "swiss"]
[EventCountry "USA"]
[SourceTitle "playchess.com"]
[Source "ChessBase"]
[SourceQuality "1"]
[TimeControl "5400+30"]

1. d4 {[%emt 0:04:06]} Nf6 {[%emt 0:00:12]} 2. c4 {[%emt 0:00:07]} e6 {[%emt 0:00:07]} 3. g3 {[%emt 0:00:12]} d5 {[%emt 0:02:52]} 4. Nf3 {[%emt 0:00:07]} dxc4 {[%emt 0:00:57]} 5. Bg2 {[%emt 0:00:38]} Bb4+ {[%emt 0:00:26]} 6. Bd2 {[%emt 0:01:36]} c5 {[%emt 0:00:14]} 7. Bxb4 {[%emt 0:05:08]} cxb4 {[%emt 0:01:03]} 8. Ne5 {[%emt 0:01:03]} O-O {[%emt 0:02:11]} 9. Nxc4 {[%emt 0:03:44]} Nc6 {[%emt 0:00:24]} 10. e3 {[%emt 0:01:41]} Rb8 {[%emt 0:31:29]} 11. Nbd2 {[%emt 0:07:19]} Nd5 {[%emt 0:04:05]} 12. O-O {[%emt 0:09:47]} b5 {[%emt 0:00:45]} 13. Ne5 {[%emt 0:00:13]} Nxe5 {[%emt 0:00:06]} 14. dxe5 {[%emt 0:00:02]} Bb7 {[%emt 0:08:15]} 15. Ne4 {[%emt 0:02:47]} Nb6 {[%emt 0:01:33]} 16. Qh5 {[%emt 0:03:53]} Bxe4 {[%emt 0:05:07]} 17. Bxe4 {[%emt 0:00:13]} g6 {[%emt 0:00:26]} 18. Qe2 {[%emt 0:03:34]} Nc4 {[%emt 0:04:07]} 19. Rfd1 {[%emt 0:05:20]} Qe7 {[%emt 0:01:33]} 20. f4 {[%emt 0:04:11]} Qc5 {[%emt 0:01:58]} 21. Rd4 {[%emt 0:02:16]} a6 {[%emt 0:14:39]} 22. Rad1 {[%emt 0:09:37]} Nb6 {[%emt 0:01:44]} 23. h4 {[%emt 0:06:57]} Qe7 {[%emt 0:00:14]} 24. b3 {[%emt 0:00:57]} Rfd8 {[%emt 0:02:49]} 25. Rd6 {[%emt 0:02:01]} Rxd6 {[%emt 0:01:45]} 26. Rxd6 {[%emt 0:01:49]} Qc7 {[%emt 0:01:51]} 27. Qd2 {[%emt 0:01:30]} a5 {[%emt 0:01:39]} 28. h5 {[%emt 0:07:25]} Kg7 {[%emt 0:00:15]} 29. Rc6 {[%emt 0:01:06]} Qa7 {[%emt 0:02:03]} 30. Qd4 {[%emt 0:01:22]} a4 {[%emt 0:01:11]} 31. Qc5 {[%emt 0:03:48]} axb3 {[%emt 0:02:53]} 32. axb3 {[%emt 0:02:32]} Qa1+ {[%emt 0:00:49]} 33. Kh2 {[%emt 0:00:44]} Qd1 {[%emt 0:03:10]} 34. Qc2 {[%emt 0:08:03]} Qxh5+ {[%emt 0:01:30]} 35. Kg2 {[%emt 0:00:04]} Nd5 {[%emt 0:01:50]} 36. Bxd5 {[%emt 0:00:12]} exd5 {[%emt 0:00:06]} 37. e6 {[%emt 0:02:56]} Re8 {[%emt 0:02:05]} 38. Qb2+ {[%emt 0:00:00]} f6 {[%emt 0:00:27]} 39. Rc7+ {[%emt 0:00:00]} Kg8 {[%emt 0:00:38]} 40. Qa2 {[%emt 0:00:52]} Qf5 {[%emt 0:00:22]} 41. Qa7 {[%emt 0:00:28]} Qe4+ {[%emt 0:00:36]} 42. Kh2 {[%emt 0:00:03]} g5 {[%emt 0:00:32]} 43. Rg7+ {[%emt 0:00:50]} Kh8 {[%emt 0:00:06]} 44. Qf7 {[%emt 0:00:40]} Rc8 {[%emt 0:00:52]} 45. Rg8+ {[%emt 0:00:30]} Rxg8 {[%emt 0:00:06]} 46. Qxf6+ {[%emt 0:00:02]} Rg7 {[%emt 0:00:07]} 47. Qf8+ {[%emt 0:00:12]} Rg8 {[%emt 0:00:07]} 48. Qf6+ {[%emt 0:00:21]} Rg7 {[%emt 0:00:08]} 1/2-1/2

[Event "1000GM NY Winter IM-C 2024"]
[Site "New York"]
[Date "2024.01.12"]
[Round "1.5"]
[White "Almeida Saenz, Alfonso"]
[Black "Venkatesh, Narayan"]
[Result "1-0"]
[ECO "D00"]
[WhiteElo "2222"]
[BlackElo "1965"]
[Annotator "RC"]
[PlyCount "129"]
[EventDate "2024.01.10"]
[EventType "swiss"]
[EventCountry "USA"]
[SourceTitle "playchess.com"]
[Source "ChessBase"]
[SourceQuality "1"]
[TimeControl "5400+30"]

1. d4 {[%emt 0:00:30]} Nf6 {[%emt 0:03:00]} 2. Bg5 {[%emt 0:00:13]} d5 {[%emt 0:00:13]} 3. Nc3 {[%emt 0:00:25]} e6 {[%emt 0:07:12]} 4. f3 {[%emt 0:00:05]} c5 {[%emt 0:01:19]} 5. e4 {[%emt 0:04:16]} cxd4 {[%emt 0:08:29]} 6. Qxd4 {[%emt 0:00:05]} Be7 {[%emt 0:10:52]} 7. exd5 {[%emt 0:00:45]} exd5 {[%emt 0:02:32]} 8. O-O-O {[%emt 0:01:00]} Nc6 {[%emt 0:03:05]} 9. Qh4 {[%emt 0:00:10]} Be6 {[%emt 0:03:09]} 10. Nh3 {[%emt 0:00:24]} h6 {[%emt 0:03:04]} 11. Nf4 {[%emt 0:00:28]} Qd7 {[%emt 0:07:26]} 12. Nxe6 {[%emt 0:01:45]} fxe6 {[%emt 0:03:12]} 13. Bb5 {[%emt 0:00:12]} a6 {[%emt 0:06:33]} 14. Bd3 {[%emt 0:01:15]} O-O-O {[%emt 0:02:31]} 15. Bd2 {[%emt 0:01:19]} Ne4 {[%emt 0:02:19]} 16. Qe1 {[%emt 0:00:03]} Nxd2 {[%emt 0:00:44]} 17. Qxd2 {[%emt 0:00:01]} Qc7 {[%emt 0:09:34]} 18. Kb1 {[%emt 0:00:18]} Bf6 {[%emt 0:01:18]} 19. Rhe1 {[%emt 0:00:28]} Rhe8 {[%emt 0:04:59]} 20. g3 {[%emt 0:00:49]} Ne5 {[%emt 0:01:41]} 21. Be2 {[%emt 0:01:42]} Nc4 {[%emt 0:01:18]} 22. Bxc4 {[%emt 0:00:16]} Qxc4 {[%emt 0:01:01]} 23. Ne2 {[%emt 0:00:27]} e5 {[%emt 0:00:51]} 24. Qc3 {[%emt 0:00:12]} Qc6 {[%emt 0:01:18]} 25. Qb3 {[%emt 0:00:27]} Rd6 {[%emt 0:05:20]} 26. Nc1 {[%emt 0:02:28]} d4 {[%emt 0:06:07]} 27. Re4 {[%emt 0:00:19]} g5 {[%emt 0:00:47]} 28. Nd3 {[%emt 0:00:54]} Qc7 {[%emt 0:02:47]} 29. Rde1 {[%emt 0:00:58]} Rb6 {[%emt 0:00:28]} 30. Qa4 {[%emt 0:00:28]} Re7 {[%emt 0:00:22]} 31. f4 {[%emt 0:01:13]} gxf4 {[%emt 0:01:15]} 32. gxf4 {[%emt 0:00:07]} exf4 {[%emt 0:01:06]} 33. Rxe7 {[%emt 0:00:38]} Bxe7 {[%emt 0:00:01]} 34. Qxd4 {[%emt 0:00:10]} Rf6 {[%emt 0:00:46]} 35. Qe4 {[%emt 0:00:23]} Bd6 {[%emt 0:00:24]} 36. Qe8+ {[%emt 0:00:59]} Qd8 {[%emt 0:00:01]} 37. Qh5 {[%emt 0:00:07]} Qd7 {[%emt 0:00:52]} 38. Re8+ {[%emt 0:01:41]} Kc7 {[%emt 0:00:01]} 39. Qa5+ {[%emt 0:00:09]} b6 {[%emt 0:01:19]} 40. Qc3+ {[%emt 0:00:26]} Bc5 {[%emt 0:00:12]} 41. Qxf6 {[%emt 0:09:48]} Qxe8 {[%emt 0:00:01]} 42. Qxf4+ {[%emt 0:00:14]} Bd6 {[%emt 0:00:03]} 43. Qxh6 {[%emt 0:00:12]} Qe2 {[%emt 0:00:24]} 44. h4 {[%emt 0:00:37]} Qf1+ {[%emt 0:00:29]} 45. Qc1 {[%emt 0:00:09]} Qh3 {[%emt 0:01:05]} 46. Qe1 {[%emt 0:00:10]} Kd7 {[%emt 0:00:44]} 47. a3 {[%emt 0:02:23]} Kc7 {[%emt 0:00:44]} 48. Nb4 {[%emt 0:01:07]} a5 {[%emt 0:00:38]} 49. Nd5+ {[%emt 0:00:08]} Kb7 {[%emt 0:00:09]} 50. Qe4 {[%emt 0:00:17]} Qf1+ {[%emt 0:00:42]} 51. Ka2 {[%emt 0:00:07]} Qf7 {[%emt 0:00:13]} 52. c4 {[%emt 0:00:19]} Ka7 {[%emt 0:00:14]} 53. Nc3 {[%emt 0:00:28]} Bc5 {[%emt 0:00:22]} 54. Qd5 {[%emt 0:00:22]} Qh7 {[%emt 0:00:21]} 55. h5 {[%emt 0:00:10]} Qh8 {[%emt 0:00:37]} 56. Qf7+ {[%emt 0:02:03]} Kb8 {[%emt 0:00:35]} 57. Nb5 {[%emt 0:00:15]} Qd8 {[%emt 0:00:02]} 58. h6 {[%emt 0:00:12]} Be7 {[%emt 0:01:00]} 59. h7 {[%emt 0:00:08]} Bf6 {[%emt 0:00:01]} 60. Qg8 {[%emt 0:00:41]} Kc8 {[%emt 0:00:01]} 61. Nd6+ {[%emt 0:00:27]} Kd7 {[%emt 0:00:02]} 62. Qxd8+ {[%emt 0:00:10]} Kxd8 {[%emt 0:00:02]} 63. Nf7+ {[%emt 0:00:23]} Ke7 {[%emt 0:00:01]} 64. h8=Q {[%emt 0:00:04]} Bxh8 {[%emt 0:00:21]} 65. Nxh8 {[%emt 0:00:01]} 1-0

[Event "1000GM NY Winter IM-C 2024"]
[Site "New York"]
[Date "2024.01.12"]
[Round "1.6"]
[White "Martin Del Campo Cardenas, Roberto Abel"]
[Black "Gaw, Chloe"]
[Result "1-0"]
[ECO "B67"]
[WhiteElo "2205"]
[BlackElo "1928"]
[Annotator "RC"]
[PlyCount "117"]
[EventDate "2024.01.10"]
[EventType "swiss"]
[EventCountry "USA"]
[SourceTitle "playchess.com"]
[Source "ChessBase"]
[SourceQuality "1"]
[TimeControl "5400+30"]

1. e4 {[%emt 0:00:07]} c5 {[%emt 0:00:10]} 2. Nf3 {[%emt 0:01:07]} d6 {[%emt 0:00:12]} 3. d4 {[%emt 0:03:18]} cxd4 {[%emt 0:00:08]} 4. Nxd4 {[%emt 0:00:02]} Nf6 {[%emt 0:00:10]} 5. Nc3 {[%emt 0:00:05]} Nc6 {[%emt 0:00:06]} 6. Bg5 {[%emt 0:00:28]} e6 {[%emt 0:00:03]} 7. Qd2 {[%emt 0:00:05]} a6 {[%emt 0:00:09]} 8. O-O-O {[%emt 0:00:34]} Bd7 {[%emt 0:00:06]} 9. f4 {[%emt 0:01:04]} b5 {[%emt 0:00:07]} 10. Nxc6 {[%emt 0:00:31]} Bxc6 {[%emt 0:00:05]} 11. Bd3 {[%emt 0:00:10]} Qb6 {[%emt 0:03:52]} 12. Rhe1 {[%emt 0:05:04]} Bb7 {[%emt 0:17:49]} 13. e5 {[%emt 0:10:15]} dxe5 {[%emt 0:21:30]} 14. fxe5 {[%emt 0:26:40]} Nd5 {[%emt 0:03:06]} 15. Nxd5 {[%emt 0:01:29]} Bxd5 {[%emt 0:09:29]} 16. Be4 {[%emt 0:00:18]} Qc6 {[%emt 0:04:18]} 17. Bxd5 {[%emt 0:02:19]} exd5 {[%emt 0:01:22]} 18. Qxd5 {[%emt 0:02:13]} Qxd5 {[%emt 0:00:21]} 19. Rxd5 {[%emt 0:00:06]} Be7 {[%emt 0:02:08]} 20. Bxe7 {[%emt 0:02:26]} Kxe7 {[%emt 0:00:08]} 21. e6 {[%emt 0:00:16]} fxe6 {[%emt 0:04:29]} 22. Rde5 {[%emt 0:00:14]} Ra7 {[%emt 0:00:18]} 23. Rxe6+ {[%emt 0:00:15]} Kf7 {[%emt 0:00:07]} 24. Rb6 {[%emt 0:10:55]} Re8 {[%emt 0:05:30]} 25. Rxe8 {[%emt 0:02:40]} Kxe8 {[%emt 0:00:06]} 26. Rd6 {[%emt 0:00:40]} Rf7 {[%emt 0:04:11]} 27. c3 {[%emt 0:03:21]} Ke7 {[%emt 0:04:35]} 28. Rd2 {[%emt 0:02:12]} Ke6 {[%emt 0:01:35]} 29. Kc2 {[%emt 0:06:17]} Ke5 {[%emt 0:01:36]} 30. Kb3 {[%emt 0:01:31]} Rf4 {[%emt 0:06:08]} 31. g3 {[%emt 0:08:00]} Rg4 {[%emt 0:03:36]} 32. Rd4 {[%emt 0:01:36]} Rg6 {[%emt 0:04:09]} 33. Kb4 {[%emt 0:00:28]} Rh6 {[%emt 0:00:37]} 34. Rh4 {[%emt 0:01:14]} Rg6 {[%emt 0:01:46]} 35. Rxh7 {[%emt 0:00:33]} Rg4+ {[%emt 0:00:46]} 36. Kb3 {[%emt 0:00:11]} g5 {[%emt 0:02:26]} 37. Ra7 {[%emt 0:00:19]} Ra4 {[%emt 0:00:17]} 38. h3 {[%emt 0:01:57]} Kf5 {[%emt 0:01:10]} 39. Rf7+ {[%emt 0:00:56]} Ke6 {[%emt 0:00:20]} 40. Rf3 {[%emt 0:00:17]} Ke5 {[%emt 0:00:16]} 41. g4 {[%emt 0:01:58]} Rf4 {[%emt 0:00:09]} 42. Rxf4 {[%emt 0:02:15]} Kxf4 {[%emt 0:00:18]} 43. a4 {[%emt 0:00:09]} Kg3 {[%emt 0:00:26]} 44. axb5 {[%emt 0:00:11]} axb5 {[%emt 0:00:03]} 45. c4 {[%emt 0:00:13]} bxc4+ {[%emt 0:00:28]} 46. Kxc4 {[%emt 0:00:11]} Kxh3 {[%emt 0:00:05]} 47. b4 {[%emt 0:00:02]} Kxg4 {[%emt 0:00:06]} 48. b5 {[%emt 0:00:10]} Kh3 {[%emt 0:01:03]} 49. b6 {[%emt 0:00:03]} g4 {[%emt 0:00:05]} 50. b7 {[%emt 0:00:08]} g3 {[%emt 0:00:03]} 51. b8=Q {[%emt 0:00:07]} g2 {[%emt 0:00:06]} 52. Qb6 {[%emt 0:00:17]} Kh2 {[%emt 0:00:05]} 53. Qf2 {[%emt 0:00:13]} Kh1 {[%emt 0:00:10]} 54. Qh4+ {[%emt 0:00:07]} Kg1 {[%emt 0:00:03]} 55. Kd3 {[%emt 0:00:17]} Kf1 {[%emt 0:00:04]} 56. Qf4+ {[%emt 0:00:19]} Kg1 {[%emt 0:01:10]} 57. Ke2 {[%emt 0:00:20]} Kh1 {[%emt 0:00:05]} 58. Qh4+ {[%emt 0:00:16]} Kg1 {[%emt 0:00:04]} 59. Qg3 {[%emt 0:00:12]} 1-0